[Event "45th FIDE Olympiad 2024"]
[Site "Budapest"]
[Date "2024.09.11"]
[Round "1.107"]
[White "Chipanga, Chiletso"]
[Black "Livaic, Leon"]
[Result "0-1"]
[ECO "B22"]
[WhiteElo "2089"]
[BlackElo "2550"]
[Annotator "TA"]
[PlyCount "94"]
[EventDate "2024.09.05"]
[EventType "team-tourn"]
[EventCountry "HUN"]
[SourceTitle "playchess.com"]
[Source "ChessBase"]
[SourceQuality "1"]
[WhiteTeam "Malawi"]
[BlackTeam "Croatia"]
[WhiteTeamCountry "MWI"]
[BlackTeamCountry "CRO"]
[TimeControl "40/5400+30:1800+30"]

{[%evp 14,94,18,-33,7,-17,9,0,29,1,0,14,0,0,10,-7,16,7,25,27,184,0,8,-22,-12,-43,-36,-149,-158,-165,-156,-154,-153,-159,-154,-146,-126,-157,-109,-288,-277,-334,-331,-600,-594,-609,-614,-652,-656,-619,-599,-599,-569,-911,-897,-828,-577,-839,-819,-2122,-1476,-1246,-1088,-1319,-1319,-1310,-1093,-1180,-1304,-1980,-4962,-8816,-12843,-12848,-12832,-29964,-29964,-29960,-29955,-29956,-9863,-4942,-4746]} 1. e4 c5 2. Nf3 Nc6 3. c3 Nf6 4. e5 Nd5 5. Bc4 Nb6 6. Bb3 c4 7. Bc2 d5 {B22: Sicilian: 2 c3.} 8. h3 ({Better is} 8. exd6 $11 e5 9. O-O) 8... Qc7 9. Qe2 Nd7 10. e6 fxe6 11. O-O e5 $146 ({Predecessor:} 11... g6 12. b3 cxb3 13. axb3 e5 14. Na3 Bg7 15. Nb5 Qb8 16. Ng5 Nf6 17. d4 e4 18. f3 h6 19. fxe4 hxg5 {½-½ Shashikant,K (2300)-Konguvel,P (2384) IND-chA 49th 2011 (6)}) 12. b3 cxb3 13. axb3 e4 14. Ne1 Nf6 15. d3 e5 16. dxe4 d4 $2 (16... Nxe4 $11 {and Black is okay.} 17. Nf3 Be7) 17. f4 $2 (17. Nf3 $18) 17... dxc3 $1 $11 18. fxe5 Nxe5 19. Bf4 Bd6 20. Kh1 (20. Nf3 $15) 20... O-O $17 21. Nf3 Nh5 22. Bh2 Nxf3 23. Rxf3 Rxf3 24. Qxf3 Bxh2 25. Qxh5 Qe5 ({Black should play} 25... Be6 {Threatens to win with ...g6.} 26. e5 g6 (26... Qxe5 27. Qxh7+ Kf7 28. Nxc3 $11) 27. Bxg6 Qg7 (27... hxg6 28. Qxg6+ Kf8 29. Qf6+ Qf7 30. Qh8+ Qg8 31. Qf6+ Qf7 32. Qh8+ Qg8 33. Qf6+ Qf7 $11) (27... Bxe5 28. Bxh7+ Kf8 29. Na3 $11) 28. Kxh2 hxg6 (28... Qxg6 29. Qxg6+ hxg6 30. Nxc3 $11)) 26. Qe2 $2 (26. Ra5 $17 Qxh5 27. Rxh5) 26... Be6 $19 27. Na3 Bf4 28. Nc4 $2 (28. Bd3) 28... Qg5 $19 29. Qf3 Rf8 30. Rf1 Bd6 31. Qe2 Rxf1+ 32. Qxf1 Bc7 33. Qd3 b5 34. Ne3 Qe5 35. Nf1 a5 36. Kg1 Bb6+ 37. Kh1 Qd4 38. Qxd4 Bxd4 39. Ng3 b4 40. Ne2 Be3 41. Bd1 a4 42. bxa4 Bc4 43. Nxc3 bxc3 44. Bc2 Kf7 45. Kh2 Ke6 46. Kg3 Be2 (46... Ke5 $142 47. a5 Bc5 48. h4 Bb4 49. h5 Bxa5 50. Kf2 Kd4 51. e5 Bd3 (51... Kxe5 52. Bxh7 Kd4 53. Bc2 $19) 52. Bb3 Kxe5 53. Bd1 c2 (53... Bb6+ $2 54. Ke1 $19) 54. Bxc2 Bxc2 55. Kf3 Bb6 56. Ke2 Be4 57. g3 Kf5 58. Kd2 Bd4 59. Ke1 Kg4 60. Kf1 Kxh5 (60... Kxg3 {leads to mate.} 61. Ke1 g5 62. hxg6 Bc3+ 63. Kd1 Bxg6 64. Kc1 h5 65. Kd1 h4 66. Ke2 h3 67. Kf1 Bd3+ 68. Kg1 h2+ 69. Kh1 Be4#) 61. Ke1 Kg4 62. Ke2 Kxg3 63. Kd2 h5 64. Ke1 h4 65. Kd1 h3 66. Kd2 h2 67. Kd1 Bc3 (67... h1=R+ {gets mated.} 68. Kd2 Rg1 69. Ke2 Bc3 70. Ke3 Re1#) 68. Ke2 h1=Q 69. Ke3 Qf3#) 47. a5 Ke5 0-1

[Event "45th FIDE Olympiad 2024"]
[Site "Budapest"]
[Date "2024.09.11"]
[Round "1.108"]
[White "Stevic, Hrvoje"]
[Black "Mwale, George"]
[Result "1-0"]
[ECO "B18"]
[WhiteElo "2531"]
[BlackElo "2056"]
[Annotator "TA"]
[PlyCount "75"]
[EventDate "2024.09.05"]
[EventType "team-tourn"]
[EventCountry "HUN"]
[SourceTitle "playchess.com"]
[Source "ChessBase"]
[SourceQuality "1"]
[WhiteTeam "Croatia"]
[BlackTeam "Malawi"]
[WhiteTeamCountry "CRO"]
[BlackTeamCountry "MWI"]
[TimeControl "40/5400+30:1800+30"]

{[%evp 13,75,1,46,41,45,54,55,43,67,54,56,48,52,40,43,0,68,63,49,42,45,37,53,47,60,66,65,58,85,81,77,83,78,56,83,70,78,66,109,106,115,106,88,93,170,167,335,259,497,497,472,414,862,787,825,836,1256,959,1240,1239,5523,3714,2427,2137]} 1. e4 c6 2. d4 d5 3. Nc3 {[%cal Bb1c3,Bc3e4,Be4g3,Bg3f5][%mdl 32]} dxe4 4. Nxe4 Bf5 5. Ng3 Bg6 6. Nh3 Nf6 7. Nf4 e6 8. h4 {[%cal Bh2h4,Bh4h5][%mdl 32]} Bd6 9. h5 Bf5 10. Nxf5 {White is slightly better.} Qa5+ 11. Bd2 Qxf5 12. Bd3 Qg4 13. Be2 Qf5 14. Bd3 Qg4 15. Qxg4 Nxg4 16. f3 Nf6 17. O-O-O Nbd7 18. g4 O-O-O 19. h6 g6 20. Nh3 Rdf8 21. Rhe1 b5 22. c3 {White is more active.} Nd5 23. Kc2 Re8 24. Ng5 Re7 {[#]} 25. a4 $1 a6 (25... bxa4 26. Ra1) 26. axb5 axb5 27. Ra1 Kb7 28. Ra2 Bb8 {[#]} (28... e5 $16) 29. b3 $1 $18 {And now c4 would win.} Nc7 $2 (29... f6) 30. c4 Ba7 $2 (30... Nf6 31. Bc3 Rd8) 31. Bb4 c5 32. Be4+ Kb8 (32... Kc8 $142 33. Ba5 (33. Rxa7 cxb4 34. d5 exd5 $18) 33... Bb8 34. dxc5 Nxc5) 33. Rea1 {White is clearly winning.} cxb4 34. Rxa7 Rd8 {Black is weak on the light squares} 35. Rb7+ Kc8 36. Raa7 Nf6 37. Bc6 {[%cal Ob7c7] White wants to mate with Rxc7+!} Nfe8 38. cxb5 {Weighted Error Value: White=0.12 (very precise) /Black=0.37.  Mistake:       	---       	Black=4      Inaccurate:     	---       	Black=3      OK:         	White=8     	Black=8      Best:        	White=3     	---} 1-0

[Event "45th FIDE Olympiad 2024"]
[Site "Budapest"]
[Date "2024.09.11"]
[Round "1.109"]
[White "Vocaturo, Daniele"]
[Black "Van Bemmelen, Ursus"]
[Result "1-0"]
[ECO "C02"]
[WhiteElo "2600"]
[BlackElo "2146"]
[Annotator "TA"]
[PlyCount "43"]
[EventDate "2024.09.05"]
[EventType "team-tourn"]
[EventCountry "HUN"]
[SourceTitle "playchess.com"]
[Source "ChessBase"]
[SourceQuality "1"]
[WhiteTeam "Italy"]
[BlackTeam "Netherlands Antilles"]
[WhiteTeamCountry "ITA"]
[BlackTeamCountry "AHO"]
[TimeControl "40/5400+30:1800+30"]

{[%evp 12,43,22,15,12,26,24,22,29,15,20,18,29,24,48,23,48,37,101,111,112,94,107,106,113,95,185,172,221,211,297,299,332,332]} 1. e4 e6 2. d4 d5 3. e5 c5 4. c3 Qb6 5. Nf3 Bd7 6. Be2 Bb5 7. Bxb5+ Qxb5 8. Na3 Qd7 9. Nc2 Nc6 {The position is equal.} 10. O-O cxd4 11. cxd4 Nge7 12. Qd3 h5 13. Bg5 Nf5 14. Ne3 Be7 ({Better is} 14... Nxe3 $14 15. fxe3 Be7) 15. Nxf5 $16 exf5 16. Bxe7 Nxe7 17. Ng5 Rh6 18. h4 {White has more active pieces.} Rb6 (18... Rc8 $16) 19. Rfe1 $18 Rc8 (19... f6 $142) 20. Qe2 g6 (20... Rh6 {is a better defense.} 21. e6 fxe6 22. Nxe6 Kf7) 21. e6 fxe6 22. Qe5 {Weighted Error Value: White=0.05 (flawless) /Black=0.32.  Mistake:       	---       	Black=4      OK:         	White=7     	Black=2      Best:        	White=2     	---} ({Don't do} 22. Nxe6 Qd6 23. Qe3 Rcc6 $18) 1-0

[Event "45th FIDE Olympiad 2024"]
[Site "Budapest"]
[Date "2024.09.11"]
[Round "1.110"]
[White "Capella, Rurik"]
[Black "Lodici, Lorenzo"]
[Result "1-0"]
[ECO "B50"]
[WhiteElo "1971"]
[BlackElo "2556"]
[Annotator "TA"]
[PlyCount "60"]
[EventDate "2024.09.05"]
[EventType "team-tourn"]
[EventCountry "HUN"]
[SourceTitle "playchess.com"]
[Source "ChessBase"]
[SourceQuality "1"]
[WhiteTeam "Netherlands Antilles"]
[BlackTeam "Italy"]
[WhiteTeamCountry "AHO"]
[BlackTeamCountry "ITA"]
[TimeControl "40/5400+30:1800+30"]

{[%evp 10,60,6,0,13,27,20,17,15,11,17,2,0,0,0,-66,-59,-60,-79,-60,-54,-51,-7,-17,-11,-83,0,0,10,13,12,-17,174,-17,-16,-22,-24,-35,-31,-89,-98,-102,-110,-586,-590,-852,-732,-724,-723,-729,-728,-765,-754]} 1. e4 c5 2. Nf3 d6 3. c3 Nf6 4. h3 g6 5. Bd3 Bg7 6. Bc2 b5 {[%cal Bb7b5,Bb5b4][%mdl 32]} 7. O-O Bb7 8. Re1 Nc6 {The position is equal.} 9. Qe2 a6 10. a4 b4 11. d4 bxc3 12. e5 (12. bxc3 $11 cxd4 13. cxd4) 12... dxe5 13. dxe5 cxb2 $1 14. Bxb2 Nd5 15. Nc3 {[#] Strongly threatening Nxd5.} Nxc3 16. Bxc3 O-O 17. Qc4 {Against Nb4} (17. Be4 $11 {remains equal.}) 17... Rc8 ({Better is} 17... Nb4 $17 18. Be4 Bxe4 19. Qxe4 Rb8) 18. Be4 $11 {[%cal Oa1d1]} Rc7 19. Rab1 {[%cal Ob1b7] [#] And now Rxb7! would win.} (19. Qxc5 $2 Nxe5 $19) 19... Qc8 20. Rb6 (20. Qxc5 $2 {perishes.} Nxe5 $19) (20. e6 $5 Qxe6 21. Qxe6 fxe6 22. Rxb7 Rxb7 23. Bxg7 (23. Bxc6 Bxc3 24. Bxb7 Bxe1 $11) 23... Kxg7 24. Bxc6 $11) 20... Nb8 $2 (20... Nd4 $11 {and Black has nothing to worry.} 21. Nd2 (21. Rxb7 Nxf3+ 22. Bxf3 Rxb7 $11) 21... Bxe4 (21... Bxe5 $2 {too greedy.} 22. Bxb7 Rxb7 23. Rxb7 $18) 22. Rxe4 Ra7) 21. Reb1 $2 (21. e6 $18 f6 22. Bxb7 Rxb7 23. a5) 21... Bxe4 22. Rxb8 Qf5 $36 {[%mdl 2048] Black has good play.} 23. Nh4 {Chess con chili.} Bd3 24. Qd5 (24. Rxf8+ $15 Bxf8 25. Nxf5 Bxc4 26. Ne3) 24... Qe4 $17 25. Rxf8+ Bxf8 {This pair of bishops is nice.} 26. Qd8 {[%mdl 8192]} (26. Qxe4 $17 Bxe4 27. Rb8) 26... Bxb1 $19 {Black is clearly winning.} 27. e6 fxe6 28. Qxc7 Qxh4 29. Qxc5 Qxa4 30. Qe5 Qd1+ {[%mdl 32768] Weighted Error Value: White=0.61/Black=0.30.  Loses game:     	White=1     	Black=1      Missed win:     	White=1     	---        Mistake:       	White=3     	Black=1      Inaccurate:     	White=2     	Black=1      OK:         	White=5     	Black=8      Best:        	White=1     	Black=2      Strong:       	---       	Black=1     . Loss on time!?} 1-0

[Event "45th FIDE Olympiad 2024"]
[Site "Budapest"]
[Date "2024.09.11"]
[Round "1.111"]
[White "Moroni, Luca Jr"]
[Black "Van Opstal, Rurik"]
[Result "1-0"]
[ECO "A25"]
[WhiteElo "2558"]
[BlackElo "2006"]
[Annotator "TA"]
[PlyCount "57"]
[EventDate "2024.09.05"]
[EventType "team-tourn"]
[EventCountry "HUN"]
[SourceTitle "playchess.com"]
[Source "ChessBase"]
[SourceQuality "1"]
[WhiteTeam "Italy"]
[BlackTeam "Netherlands Antilles"]
[WhiteTeamCountry "ITA"]
[BlackTeamCountry "AHO"]
[TimeControl "40/5400+30:1800+30"]

{[%evp 9,57,42,52,41,48,60,76,62,71,47,67,66,66,71,85,75,118,117,123,120,131,138,141,116,136,152,195,183,181,185,193,206,247,249,268,251,257,246,268,279,329,336,310,315,403,387,689,693,1040,1012]} 1. c4 e5 2. Nc3 Nc6 3. g3 f5 4. Bg2 Bb4 5. Nd5 Be7 6. e3 Nf6 7. Ne2 O-O 8. O-O {White is better.} d6 9. Nec3 Kh8 10. d3 Nxd5 11. Nxd5 Bf6 {White now steadily converts the win.} 12. Bd2 Ne7 13. Nxf6 Rxf6 14. Bc3 Qe8 15. f4 Ng6 16. Qh5 Rf8 17. Rae1 {White is much more active. The black rooks are passive.} Qf7 18. b3 c6 19. e4 exf4 20. gxf4 {[%cal Bg3f4,Bf4f5][%mdl 32]} Bd7 21. Re3 $1 {Threatens to win with Rh3.} fxe4 {[#]} 22. f5 $1 (22. Bxe4 Bf5 $11) 22... Ne5 (22... Bxf5 23. dxe4 Qe7 (23... Qe6 $2 24. Rxf5 Rxf5 25. Qxf5 $18) 24. Rxf5) 23. Qxf7 Rxf7 {[%cal Bf8f7,Bf7f6,Bf6h6][%mdl 32]} 24. dxe4 ({Not} 24. Bxe4 Ng4 25. Re2 Re8 $11) 24... Rf6 25. Rd1 {And now Bxe5 would win.} Re8 {[#]} 26. c5 $1 {[%mdl 512]} Rh6 (26... Re7 27. Rxd6) 27. Rg3 (27. cxd6 Kg8 28. Rg3 Kf8 $16) 27... d5 $2 (27... Kg8 28. Rxd6 (28. cxd6 Kf7 $18) 28... Rxd6 29. cxd6 Kf7) 28. exd5 $18 cxd5 29. Rxd5 {Weighted Error Value: White=0.04 (flawless) /Black=0.32.  Mistake:       	---       	Black=1      Inaccurate:     	---       	Black=2      OK:         	White=7     	Black=4      Best:        	White=2     	Black=1      Strong:       	White=2     	---        Brilliant:      	White=1     	---} 1-0

[Event "45th FIDE Olympiad 2024"]
[Site "Budapest"]
[Date "2024.09.11"]
[Round "1.112"]
[White "Blijstra, Willem"]
[Black "Sonis, Francesco"]
[Result "0-1"]
[ECO "A47"]
[WhiteElo "2063"]
[BlackElo "2554"]
[Annotator "TA"]
[PlyCount "62"]
[EventDate "2024.09.05"]
[EventType "team-tourn"]
[EventCountry "HUN"]
[SourceTitle "playchess.com"]
[Source "ChessBase"]
[SourceQuality "1"]
[WhiteTeam "Netherlands Antilles"]
[BlackTeam "Italy"]
[WhiteTeamCountry "AHO"]
[BlackTeamCountry "ITA"]
[TimeControl "40/5400+30:1800+30"]

{[%evp 14,62,21,20,31,29,37,-16,-14,-42,-37,-64,-67,-77,-31,-54,-51,-65,-19,-20,-16,-20,-12,-24,0,-12,-16,-39,-19,-49,-44,-57,-45,-186,-188,-193,-185,-243,-253,-252,-262,-314,-325,-320,-326,-320,-304,-358,-354,-408,-402]} 1. d4 Nf6 2. Bf4 e6 3. e3 b6 4. Nf3 Be7 5. Bd3 Bb7 6. h3 c5 7. Nbd2 cxd4 8. exd4 O-O 9. O-O d6 10. c4 ({White should try} 10. Re1 $14) 10... d5 {The position is equal.} 11. b3 Nc6 12. Rc1 Ba3 13. Rb1 Bb4 (13... Nb4 $17 14. Qe2 Nxa2) 14. Be3 Rc8 15. Ne5 Be7 (15... Ne7 $15) 16. Nxc6 $11 Bxc6 17. Rc1 dxc4 18. bxc4 Qd6 19. Qb3 Rfd8 20. Rfd1 Qd7 $40 {[%mdl 128] Black has some attack.} 21. Bc2 b5 22. cxb5 Bxb5 23. Qb1 {White does not recover from this.} (23. Nf3 $15) 23... Ba3 $19 24. Nb3 Bxc1 25. Rxc1 (25. Nc5 $142 Qd5 26. Qxc1) 25... Ba4 26. Nc5 Bxc2 27. Nxd7 Bxb1 28. Nxf6+ gxf6 29. Rxb1 Rb8 30. Rd1 Rb2 31. Ra1 Rdb8 {Weighted Error Value: White=0.31/Black=0.10 (very precise) .  Mistake:       	White=3     	Black=2      Inaccurate:     	White=3     	---        OK:         	White=6     	Black=8      Best:        	White=1     	Black=3} 0-1

[Event "45th FIDE Olympiad 2024"]
[Site "Budapest"]
[Date "2024.09.11"]
[Round "1.113"]
[White "Chinchilla, Alejandro Jose"]
[Black "Stremavicius, Titas"]
[Result "0-1"]
[ECO "B67"]
[WhiteElo "2113"]
[BlackElo "2527"]
[Annotator "TA"]
[PlyCount "58"]
[EventDate "2024.09.05"]
[EventType "team-tourn"]
[EventCountry "HUN"]
[SourceTitle "playchess.com"]
[Source "ChessBase"]
[SourceQuality "1"]
[WhiteTeam "Honduras"]
[BlackTeam "Lithuania"]
[WhiteTeamCountry "HON"]
[BlackTeamCountry "LTU"]
[TimeControl "40/5400+30:1800+30"]

{[%evp 21,56,52,53,37,40,18,38,-18,-6,-36,-27,-31,-35,-26,-21,-33,-19,-22,0,0,109,0,0,-7,-24,-190,-175,-175,-177,-196,-202,-527,-365,-365,-363,-640,-660]} 1. e4 c5 2. Nf3 Nc6 3. d4 cxd4 4. Nxd4 Nf6 5. Nc3 d6 6. Bg5 Bd7 7. Qd2 a6 8. O-O-O e6 9. f4 b5 10. Bxf6 gxf6 {[%cal Bg7f6,Bf6f5,Bf5e4][%mdl 32]} 11. Kb1 Qb6 12. Nxc6 Bxc6 13. Qd3 h5 14. g3 ({Better is} 14. f5 $14) 14... b4 15. Ne2 f5 16. Bg2 Qb7 {[%cal Rf5e4]} 17. Nd4 {Hoping for Nxc6.} Bxe4 18. Bxe4 fxe4 (18... Qxe4 19. Qc4 Qb7 20. Nxe6 fxe6 21. Qxe6+ Be7 22. Qxf5 $11) 19. Qb3 {[%cal Od4e6]} d5 $36 {[%mdl 2048] Black has the initiative.} (19... a5 $5 20. Nxe6 fxe6 (20... a4 21. Qd5 $14) 21. Qxe6+ Qe7 22. Qg6+ Kd8 $11) 20. c4 $1 O-O-O {[%cal Ba8d8,Bd8d5,Bd5b5][%mdl 32]} (20... dxc4 $11 {keeps the balance.} 21. Qa4+ Ke7) 21. Rc1 ({White should try} 21. cxd5 $16 Rxd5 (21... Qxd5 $2 22. Qc2+ Qc5 23. Qxe4 $18) 22. Qc4+ (22. Rhe1 Bc5 $15) 22... Kd7 23. f5) 21... Bc5 $11 22. cxd5 Rxd5 {[%cal Oc8b8] aiming for ...Kb8!} 23. Qc4 $2 {[#] This move loses the game for White.} (23. Qa4 $1 $11 Rxd4 24. Rxc5+ Kb8 25. Rhc1) 23... Kb8 $1 $19 24. Nb3 Be3 25. Rce1 Ba7 ({Stronger than} 25... Rd3 26. Na5 Qd5 (26... Rc8 $2 27. Qxd3 exd3 28. Nxb7 $18) 27. Nc6+ Kb7 28. Qxd5 exd5 29. Nxb4 $11 (29. Ne5 d4 $11)) 26. a3 $2 (26. Rc1 {is a better chance.}) 26... Rc8 27. Qxb4 {[#]} Rb5 28. Qd6+ (28. Qxe4 Rxb3 29. Re2) 28... Ka8 29. Rc1 Rxc1+ {Weighted Error Value: White=0.73/Black=0.26 (precise) .  Loses game:     	White=1     	---        Mistake:       	White=4     	Black=1      Inaccurate:     	---       	Black=1      OK:         	White=7     	Black=4      Best:        	---       	Black=2      Strong:       	White=1     	Black=1} 0-1

[Event "45th FIDE Olympiad 2024"]
[Site "Budapest"]
[Date "2024.09.11"]
[Round "1.114"]
[White "Pultinevicius, Paulius"]
[Black "Colindres, Daniel"]
[Result "1-0"]
[ECO "E23"]
[WhiteElo "2587"]
[BlackElo "2079"]
[Annotator "TA"]
[PlyCount "91"]
[EventDate "2024.09.05"]
[EventType "team-tourn"]
[EventCountry "HUN"]
[SourceTitle "playchess.com"]
[Source "ChessBase"]
[SourceQuality "1"]
[WhiteTeam "Lithuania"]
[BlackTeam "Honduras"]
[WhiteTeamCountry "LTU"]
[BlackTeamCountry "HON"]
[TimeControl "40/5400+30:1800+30"]

{[%evp 10,91,-6,0,10,13,2,0,14,12,-8,0,0,0,0,0,0,0,0,0,0,0,4,9,0,0,2,6,23,19,0,0,0,0,0,0,35,35,126,126,123,123,110,83,106,118,118,80,82,85,84,90,175,68,112,25,25,25,33,25,44,14,260,261,250,241,216,191,250,197,275,250,1100,1049,1376,1364,1439,1100,1383,1251,2017,1210,2772,2029]} 1. d4 Nf6 2. c4 e6 3. Nc3 Bb4 4. Qb3 c5 5. dxc5 Nc6 6. Nf3 O-O {[%cal Of6e4]} 7. a3 Bxc5 8. Bg5 Nd4 {The position is equal.} 9. Nxd4 Bxd4 10. e3 Qa5 11. exd4 Qxg5 12. Nb5 d5 13. c5 e5 14. Qe3 Qxe3+ 15. fxe3 exd4 16. exd4 Re8+ 17. Kd2 Ne4+ 18. Kc2 {Nc7 is the strong threat.} Nf2 $1 19. Nd6 $1 $36 {[%mdl 2048] White has good play.} Re3 20. Rg1 Ne4 21. Nxc8 Rxc8 {[%cal Ba8c8,Bc8c6,Bc6e6,Be6e3][%mdl 32]} 22. b4 Rc6 {aiming for ...Rf6.} 23. Bd3 Nf2 (23... Rh6 $14) 24. Rge1 $1 $16 Rce6 25. Rxe3 Rxe3 {[%mdl 4096] Endgame. KRB-KRN} 26. Bf5 {Hoping for Kd2.} g6 27. Kd2 {Against Re2+} Re7 28. Rf1 Ne4+ 29. Bxe4 Rxe4 {KR-KR} 30. Kd3 Kf8 {[#]} (30... Re6 $16) 31. b5 ({White has to play} 31. Rf6 $1 $18) 31... f5 {[#]} 32. g3 ({White should play} 32. Rc1 $1 $16) 32... Ke7 $11 33. a4 {[%cal Ba3a4,Ba4a5,Ba5b6][%mdl 32]} Kd7 34. a5 Kc7 35. Rb1 f4 $2 {This costs Black the game.} (35... Kc8 $1 $11 {and Black stays safe.}) 36. gxf4 $18 Rxf4 37. b6+ axb6 38. axb6+ ({Resist} 38. cxb6+ Kc6) 38... Kc6 39. Re1 {Black must now prevent Re7.} Rf3+ 40. Re3 Rf2 (40... Rf7 41. Re5 h5) 41. Re7 {White is clearly winning.} Rxh2 42. Rc7+ Kb5 43. Rxb7 {Strongly threatening Rc7.} Rh3+ 44. Ke2 {And now Rc7 would win.} Rh4 45. Rc7 {White wants to mate with b7.} Rh2+ 46. Kf3 {Weighted Error Value: White=0.11 (very precise) /Black=0.31.  Loses game:     	---       	Black=1      Mistake:       	White=2     	Black=3      Inaccurate:     	White=2     	Black=3      OK:         	White=14    	Black=18     Best:        	White=6     	Black=2      Strong:       	White=2     	Black=1} 1-0

[Event "45th FIDE Olympiad 2024"]
[Site "Budapest"]
[Date "2024.09.11"]
[Round "1.115"]
[White "Gavarrete, Joel"]
[Black "Kazakouski, Valery"]
[Result "0-1"]
[ECO "B59"]
[WhiteElo "2059"]
[BlackElo "2577"]
[Annotator "TA"]
[PlyCount "86"]
[EventDate "2024.09.05"]
[EventType "team-tourn"]
[EventCountry "HUN"]
[SourceTitle "playchess.com"]
[Source "ChessBase"]
[SourceQuality "1"]
[WhiteTeam "Honduras"]
[BlackTeam "Lithuania"]
[WhiteTeamCountry "HON"]
[BlackTeamCountry "LTU"]
[TimeControl "40/5400+30:1800+30"]

{[%evp 19,86,-16,13,20,7,19,39,20,33,23,54,33,45,49,56,42,45,26,39,39,41,12,29,16,29,10,8,0,0,14,14,14,6,5,3,0,0,0,0,0,0,-67,-69,-108,-95,-217,-218,-252,-241,-251,-249,-328,-211,-198,-214,-429,-382,-403,-403,-547,-526,-514,-380,-428,-411,-29996,-29997,-29997,-29998]} 1. e4 c5 2. Nf3 Nc6 3. d4 cxd4 4. Nxd4 Nf6 5. Nc3 d6 6. Be2 e5 7. Nb3 Be7 8. Be3 Be6 9. O-O O-O 10. Kh1 a5 11. Nd2 Rb8 12. a4 d5 13. exd5 {White is slightly better.} Nxd5 14. Nxd5 Qxd5 15. Bc4 Qd7 16. c3 {Prevents Nb4.} Bxc4 17. Nxc4 Qe6 18. Qe2 (18. Qb3 $5) 18... e4 19. Rfe1 f5 20. Bf4 Rbe8 21. f3 {[%cal Rf3e4]} Bc5 22. Rad1 Qf7 {White must now prevent ...exf3.} 23. Nd6 Bxd6 24. Bxd6 exf3 25. Qxf3 Rxe1+ 26. Rxe1 Rd8 {Black is weak on the dark squares} 27. Bf4 h6 28. h4 Qc4 29. Bg3 Rf8 30. Qe2 (30. Qd1 $11) 30... Qxa4 $15 {Black is more active.} 31. Qe6+ Kh7 32. c4 {This costs White the game.} (32. Qe3 $17) 32... Qb3 $19 {[%csl LRb2,LRg3]} 33. Bd6 Rf6 34. Qd5 Qxb2 35. Re8 {h5 is the strong threat.} Qa1+ 36. Kh2 {[#] Intending h5 and mate.} Qd4 $1 37. Qg8+ $2 (37. Bg3) 37... Kg6 38. Bg3 f4 39. h5+ Kxh5 40. Be1 Kg6 {Threatens to win with ...f3.} 41. Bh4 Ne5 (41... Rd6 42. Re6+ Rxe6 43. Qxe6+ Kh5 44. Be1 $19) 42. Bxf6 {[#]} (42. Qd5 $19 Qxd5 (42... Qxc4 43. Qxe5 Rf7 44. Qxa5 $14) 43. cxd5) 42... Ng4+ 43. Kh3 Qd3+ {Weighted Error Value: White=0.57/Black=0.18 (very precise) .  Mistake:       	White=4     	---        Inaccurate:     	White=4     	Black=2      OK:         	White=9     	Black=14     Best:        	White=1     	Black=6      Strong:       	---       	Black=1} 0-1